{"text_format":"3","workbook":"xlsx","n_sheets":2,"sheets":["Projektin seuranta","Määritys"],"not_rendered":{"defined_names":6},"read":"whole","date_system":"1900"}

{"sheet":"Projektin seuranta","index":0,"n_rows":13,"n_cols":15,"rows_kept":13}
[null,"Projektin seuranta"]
[null,null,"Ylityksen/alituksen prosenttiluku: ",{"v":0.25,"d":"25%"}]
[]
[null,"Projekti","Luokka","Vastuuhenkilö","Arvioitu\naloitus","Arvioitu \npäättyminen","Arvioitu työmäärä (tunteina)","Arvioitu kesto (päivinä)","Toteutunut \naloitus","Toteutunut\npäättyminen","Lippukuvake arvioidun työmäärän (tuntia) ylitykselle/alitukselle","Toteutunut työmäärä (tunteina)","Lippukuvake arvioidun keston (päiviä) ylitykselle/alitukselle","Toteutunut kesto (päivinä)","Huomautukset"]
[null,"Projekti 1","Luokka 1","Työntekijä 1",{"$f":"TODAY()-65","v":"2016-10-03"},{"$f":"TODAY()-5","v":"2016-12-02"},210,{"$f":"IF(COUNTA('Projektin seuranta'!$E5,'Projektin seuranta'!$F5)<>2,\"\",DAYS360('Projektin seuranta'!$E5,'Projektin seuranta'!$F5,FALSE))","v":59},{"$f":"TODAY()-65","v":"2016-10-03"},{"$f":"TODAY()","v":"2016-12-07"},{"$f":"IFERROR(IF(Projektin_seuranta[Toteutunut työmäärä (tunteina)]=0,\"\",IF(ABS((Projektin_seuranta[[#This Row],[Toteutunut työmäärä (tunteina)]]-Projektin_seuranta[[#This Row],[Arvioitu työmäärä (tunteina)]])/Projektin_seuranta[[#This Row],[Arvioitu työmäärä (tunteina)]])>FlagPercent,1,0)),\"\")","v":1},300,{"$f":"IFERROR(IF(Projektin_seuranta[Toteutunut kesto (päivinä)]=0,\"\",IF(ABS((Projektin_seuranta[[#This Row],[Toteutunut kesto (päivinä)]]-Projektin_seuranta[[#This Row],[Arvioitu kesto (päivinä)]])/Projektin_seuranta[[#This Row],[Arvioitu kesto (päivinä)]])>FlagPercent,1,0)),\"\")","v":0},{"$f":"IF(COUNTA('Projektin seuranta'!$I5,'Projektin seuranta'!$J5)<>2,\"\",DAYS360('Projektin seuranta'!$I5,'Projektin seuranta'!$J5,FALSE))","v":64}]
[null,"Projekti 2","Luokka 2","Työntekijä 4",{"$f":"TODAY()-41","v":"2016-10-27"},{"$f":"TODAY()-10","v":"2016-11-27"},400,{"$f":"IF(COUNTA('Projektin seuranta'!$E6,'Projektin seuranta'!$F6)<>2,\"\",DAYS360('Projektin seuranta'!$E6,'Projektin seuranta'!$F6,FALSE))","v":30},{"$f":"TODAY()-41","v":"2016-10-27"},{"$f":"TODAY()-7","v":"2016-11-30"},{"$f":"IFERROR(IF(Projektin_seuranta[Toteutunut työmäärä (tunteina)]=0,\"\",IF(ABS((Projektin_seuranta[[#This Row],[Toteutunut työmäärä (tunteina)]]-Projektin_seuranta[[#This Row],[Arvioitu työmäärä (tunteina)]])/Projektin_seuranta[[#This Row],[Arvioitu työmäärä (tunteina)]])>FlagPercent,1,0)),\"\")","v":0},390,{"$f":"IFERROR(IF(Projektin_seuranta[Toteutunut kesto (päivinä)]=0,\"\",IF(ABS((Projektin_seuranta[[#This Row],[Toteutunut kesto (päivinä)]]-Projektin_seuranta[[#This Row],[Arvioitu kesto (päivinä)]])/Projektin_seuranta[[#This Row],[Arvioitu kesto (päivinä)]])>FlagPercent,1,0)),\"\")","v":0},{"$f":"IF(COUNTA('Projektin seuranta'!$I6,'Projektin seuranta'!$J6)<>2,\"\",DAYS360('Projektin seuranta'!$I6,'Projektin seuranta'!$J6,FALSE))","v":33}]
[null,"Projekti 3","Luokka 1","Työntekijä 2",{"$f":"TODAY()-100","v":"2016-08-29"},{"$f":"TODAY()-40","v":"2016-10-28"},500,{"$f":"IF(COUNTA('Projektin seuranta'!$E7,'Projektin seuranta'!$F7)<>2,\"\",DAYS360('Projektin seuranta'!$E7,'Projektin seuranta'!$F7,FALSE))","v":59},{"$f":"TODAY()-100","v":"2016-08-29"},{"$f":"TODAY()-27","v":"2016-11-10"},{"$f":"IFERROR(IF(Projektin_seuranta[Toteutunut työmäärä (tunteina)]=0,\"\",IF(ABS((Projektin_seuranta[[#This Row],[Toteutunut työmäärä (tunteina)]]-Projektin_seuranta[[#This Row],[Arvioitu työmäärä (tunteina)]])/Projektin_seuranta[[#This Row],[Arvioitu työmäärä (tunteina)]])>FlagPercent,1,0)),\"\")","v":0},500,{"$f":"IFERROR(IF(Projektin_seuranta[Toteutunut kesto (päivinä)]=0,\"\",IF(ABS((Projektin_seuranta[[#This Row],[Toteutunut kesto (päivinä)]]-Projektin_seuranta[[#This Row],[Arvioitu kesto (päivinä)]])/Projektin_seuranta[[#This Row],[Arvioitu kesto (päivinä)]])>FlagPercent,1,0)),\"\")","v":0},{"$f":"IF(COUNTA('Projektin seuranta'!$I7,'Projektin seuranta'!$J7)<>2,\"\",DAYS360('Projektin seuranta'!$I7,'Projektin seuranta'!$J7,FALSE))","v":71}]
[null,"Projekti 4","Luokka 2","Työntekijä 3",{"$f":"TODAY()-90","v":"2016-09-08"},{"$f":"TODAY()-80","v":"2016-09-18"},250,{"$f":"IF(COUNTA('Projektin seuranta'!$E8,'Projektin seuranta'!$F8)<>2,\"\",DAYS360('Projektin seuranta'!$E8,'Projektin seuranta'!$F8,FALSE))","v":10},{"$f":"TODAY()-90","v":"2016-09-08"},{"$f":"TODAY()-71","v":"2016-09-27"},{"$f":"IFERROR(IF(Projektin_seuranta[Toteutunut työmäärä (tunteina)]=0,\"\",IF(ABS((Projektin_seuranta[[#This Row],[Toteutunut työmäärä (tunteina)]]-Projektin_seuranta[[#This Row],[Arvioitu työmäärä (tunteina)]])/Projektin_seuranta[[#This Row],[Arvioitu työmäärä (tunteina)]])>FlagPercent,1,0)),\"\")","v":0},276,{"$f":"IFERROR(IF(Projektin_seuranta[Toteutunut kesto (päivinä)]=0,\"\",IF(ABS((Projektin_seuranta[[#This Row],[Toteutunut kesto (päivinä)]]-Projektin_seuranta[[#This Row],[Arvioitu kesto (päivinä)]])/Projektin_seuranta[[#This Row],[Arvioitu kesto (päivinä)]])>FlagPercent,1,0)),\"\")","v":1},{"$f":"IF(COUNTA('Projektin seuranta'!$I8,'Projektin seuranta'!$J8)<>2,\"\",DAYS360('Projektin seuranta'!$I8,'Projektin seuranta'!$J8,FALSE))","v":19}]
[null,"Projekti 5","Luokka 3","Työntekijä 2",{"$f":"TODAY()-90","v":"2016-09-08"},{"$f":"TODAY()-50","v":"2016-10-18"},300,{"$f":"IF(COUNTA('Projektin seuranta'!$E9,'Projektin seuranta'!$F9)<>2,\"\",DAYS360('Projektin seuranta'!$E9,'Projektin seuranta'!$F9,FALSE))","v":40},{"$f":"TODAY()-90","v":"2016-09-08"},{"$f":"TODAY()-44","v":"2016-10-24"},{"$f":"IFERROR(IF(Projektin_seuranta[Toteutunut työmäärä (tunteina)]=0,\"\",IF(ABS((Projektin_seuranta[[#This Row],[Toteutunut työmäärä (tunteina)]]-Projektin_seuranta[[#This Row],[Arvioitu työmäärä (tunteina)]])/Projektin_seuranta[[#This Row],[Arvioitu työmäärä (tunteina)]])>FlagPercent,1,0)),\"\")","v":0},310,{"$f":"IFERROR(IF(Projektin_seuranta[Toteutunut kesto (päivinä)]=0,\"\",IF(ABS((Projektin_seuranta[[#This Row],[Toteutunut kesto (päivinä)]]-Projektin_seuranta[[#This Row],[Arvioitu kesto (päivinä)]])/Projektin_seuranta[[#This Row],[Arvioitu kesto (päivinä)]])>FlagPercent,1,0)),\"\")","v":0},{"$f":"IF(COUNTA('Projektin seuranta'!$I9,'Projektin seuranta'!$J9)<>2,\"\",DAYS360('Projektin seuranta'!$I9,'Projektin seuranta'!$J9,FALSE))","v":46}]
[null,"Projekti 6","Luokka 4","Työntekijä 4",{"$f":"TODAY()-60","v":"2016-10-08"},{"$f":"TODAY()-50","v":"2016-10-18"},500,{"$f":"IF(COUNTA('Projektin seuranta'!$E10,'Projektin seuranta'!$F10)<>2,\"\",DAYS360('Projektin seuranta'!$E10,'Projektin seuranta'!$F10,FALSE))","v":10},{"$f":"TODAY()-60","v":"2016-10-08"},{"$f":"TODAY()-45","v":"2016-10-23"},{"$f":"IFERROR(IF(Projektin_seuranta[Toteutunut työmäärä (tunteina)]=0,\"\",IF(ABS((Projektin_seuranta[[#This Row],[Toteutunut työmäärä (tunteina)]]-Projektin_seuranta[[#This Row],[Arvioitu työmäärä (tunteina)]])/Projektin_seuranta[[#This Row],[Arvioitu työmäärä (tunteina)]])>FlagPercent,1,0)),\"\")","v":0},510,{"$f":"IFERROR(IF(Projektin_seuranta[Toteutunut kesto (päivinä)]=0,\"\",IF(ABS((Projektin_seuranta[[#This Row],[Toteutunut kesto (päivinä)]]-Projektin_seuranta[[#This Row],[Arvioitu kesto (päivinä)]])/Projektin_seuranta[[#This Row],[Arvioitu kesto (päivinä)]])>FlagPercent,1,0)),\"\")","v":1},{"$f":"IF(COUNTA('Projektin seuranta'!$I10,'Projektin seuranta'!$J10)<>2,\"\",DAYS360('Projektin seuranta'!$I10,'Projektin seuranta'!$J10,FALSE))","v":15}]
[null,"Projekti 7","Luokka 5","Työntekijä 1",{"$f":"TODAY()-44","v":"2016-10-24"},{"$f":"TODAY()-20","v":"2016-11-17"},750,{"$f":"IF(COUNTA('Projektin seuranta'!$E11,'Projektin seuranta'!$F11)<>2,\"\",DAYS360('Projektin seuranta'!$E11,'Projektin seuranta'!$F11,FALSE))","v":23},{"$f":"TODAY()-44","v":"2016-10-24"},{"$f":"TODAY()-15","v":"2016-11-22"},{"$f":"IFERROR(IF(Projektin_seuranta[Toteutunut työmäärä (tunteina)]=0,\"\",IF(ABS((Projektin_seuranta[[#This Row],[Toteutunut työmäärä (tunteina)]]-Projektin_seuranta[[#This Row],[Arvioitu työmäärä (tunteina)]])/Projektin_seuranta[[#This Row],[Arvioitu työmäärä (tunteina)]])>FlagPercent,1,0)),\"\")","v":0},790,{"$f":"IFERROR(IF(Projektin_seuranta[Toteutunut kesto (päivinä)]=0,\"\",IF(ABS((Projektin_seuranta[[#This Row],[Toteutunut kesto (päivinä)]]-Projektin_seuranta[[#This Row],[Arvioitu kesto (päivinä)]])/Projektin_seuranta[[#This Row],[Arvioitu kesto (päivinä)]])>FlagPercent,1,0)),\"\")","v":0},{"$f":"IF(COUNTA('Projektin seuranta'!$I11,'Projektin seuranta'!$J11)<>2,\"\",DAYS360('Projektin seuranta'!$I11,'Projektin seuranta'!$J11,FALSE))","v":28}]
[null,"Projekti 8","Luokka 2","Työntekijä 1",{"$f":"TODAY()-39","v":"2016-10-29"},{"$f":"TODAY()","v":"2016-12-07"},450,{"$f":"IF(COUNTA('Projektin seuranta'!$E12,'Projektin seuranta'!$F12)<>2,\"\",DAYS360('Projektin seuranta'!$E12,'Projektin seuranta'!$F12,FALSE))","v":38},{"$f":"TODAY()-45","v":"2016-10-23"},{"$f":"TODAY()-5","v":"2016-12-02"},{"$f":"IFERROR(IF(Projektin_seuranta[Toteutunut työmäärä (tunteina)]=0,\"\",IF(ABS((Projektin_seuranta[[#This Row],[Toteutunut työmäärä (tunteina)]]-Projektin_seuranta[[#This Row],[Arvioitu työmäärä (tunteina)]])/Projektin_seuranta[[#This Row],[Arvioitu työmäärä (tunteina)]])>FlagPercent,1,0)),\"\")","v":0},430,{"$f":"IFERROR(IF(Projektin_seuranta[Toteutunut kesto (päivinä)]=0,\"\",IF(ABS((Projektin_seuranta[[#This Row],[Toteutunut kesto (päivinä)]]-Projektin_seuranta[[#This Row],[Arvioitu kesto (päivinä)]])/Projektin_seuranta[[#This Row],[Arvioitu kesto (päivinä)]])>FlagPercent,1,0)),\"\")","v":0},{"$f":"IF(COUNTA('Projektin seuranta'!$I12,'Projektin seuranta'!$J12)<>2,\"\",DAYS360('Projektin seuranta'!$I12,'Projektin seuranta'!$J12,FALSE))","v":39}]
[null,"Projekti 9","Luokka 4","Työntekijä 1","2016-02-05","2016-06-09",250,{"$f":"IF(COUNTA('Projektin seuranta'!$E13,'Projektin seuranta'!$F13)<>2,\"\",DAYS360('Projektin seuranta'!$E13,'Projektin seuranta'!$F13,FALSE))","v":124},"2016-03-05","2016-05-05",{"$f":"IFERROR(IF(Projektin_seuranta[Toteutunut työmäärä (tunteina)]=0,\"\",IF(ABS((Projektin_seuranta[[#This Row],[Toteutunut työmäärä (tunteina)]]-Projektin_seuranta[[#This Row],[Arvioitu työmäärä (tunteina)]])/Projektin_seuranta[[#This Row],[Arvioitu työmäärä (tunteina)]])>FlagPercent,1,0)),\"\")","v":0},200,{"$f":"IFERROR(IF(Projektin_seuranta[Toteutunut kesto (päivinä)]=0,\"\",IF(ABS((Projektin_seuranta[[#This Row],[Toteutunut kesto (päivinä)]]-Projektin_seuranta[[#This Row],[Arvioitu kesto (päivinä)]])/Projektin_seuranta[[#This Row],[Arvioitu kesto (päivinä)]])>FlagPercent,1,0)),\"\")","v":1},{"$f":"IF(COUNTA('Projektin seuranta'!$I13,'Projektin seuranta'!$J13)<>2,\"\",DAYS360('Projektin seuranta'!$I13,'Projektin seuranta'!$J13,FALSE))","v":60}]

{"sheet":"Määritys","index":1,"n_rows":10,"n_cols":3,"rows_kept":10}
[null,"Määritys"]
[]
[]
[null,"Luokan nimi","Työntekijän nimi"]
[null,"Luokka 1","Työntekijä 1"]
[null,"Luokka 2","Työntekijä 2"]
[null,"Luokka 3","Työntekijä 3"]
[null,"Luokka 4","Työntekijä 4"]
[null,"Luokka 5","Työntekijä 5"]
[null,"Luokka 6","Työntekijä 6"]